bitfinex/quotes_SOLUSD_20240622
["timestamp","ask_amount","ask_price","bid_price","bid_amount"]
[1719044648046,7.4466,134.29,134.25,22.6371]
[1719044648841,45.0,134.32,134.25,16.1946]
[1719044649040,7.4479,134.27,134.22,29.3106]
[1719044649634,7.4473,134.28,134.23,7.4498]
[1719044650635,7.4476,134.27,134.23,7.4498]
[1719044651549,7.4476,134.27,134.22,29.3107]
[1719044652766,7.4484,134.26,134.22,21.8605]
[1719044652970,18.6176,134.29,134.22,21.8605]
[1719044653438,7.4485,134.26,134.22,21.8605]
[1719044653638,7.4485,134.26,134.22,29.3107]
[1719044654262,18.614,134.31,134.22,21.8605]
[1719044654450,7.4468,134.29,134.24,7.4492]
[1719044655564,7.4471,134.28,134.24,7.4492]
[1719044656540,0.20458634,134.32,134.22,40.4864]
[1719044656865,7.4468,134.29,134.24,7.449]
[1719044657361,7.4471,134.28,134.24,7.449]
[1719044659656,18.81798634,134.32,134.25,7.4485]
[1719044659980,7.4465,134.3,134.25,7.4485]
[1719044660178,7.4465,134.3,134.26,15.4617]
[1719044660390,25.87050213,134.33,134.26,22.9094]
[1719044660561,7.446,134.3,134.26,15.4617]
[1719044663470,7.446,134.3,134.26,22.9098]
[1719044663981,7.446,134.3,134.26,15.4617]
[1719044664281,7.4467,134.29,134.26,15.4617]
[1719044666269,7.4472,134.28,134.26,15.4617]
[1719044668564,38.6111,134.33,134.26,15.4617]
[1719044668769,38.6111,134.33,134.26,22.9096]
[1719044668991,7.4461,134.3,134.26,15.4617]
[1719044669597,7.4457,134.31,134.26,22.9099]
[1719044670092,18.6136,134.31,134.26,15.4617]
[1719044671390,7.4481,134.27,134.23,15.6659]
[1719044671889,7.4483,134.26,134.23,15.6659]
[1719044672267,7.4478,134.27,134.23,15.6659]
[1719044674180,7.4482,134.26,134.23,15.6659]
[1719044676103,7.4479,134.27,134.23,15.6659]
[1719044676297,7.476,134.32,134.23,15.6659]
[1719044676491,7.4461,134.3,134.25,7.4486]
[1719044676694,7.4462,134.3,134.25,7.4487]
[1719044678288,7.4466,134.29,134.25,7.4487]
[1719044679303,7.4466,134.29,134.24,7.4491]
[1719044679510,7.4471,134.28,134.24,7.4491]
[1719044680909,7.4468,134.29,134.24,7.4491]
[1719044681977,7.4461,134.3,134.25,7.4485]
[1719044682301,7.4457,134.31,134.26,7.4481]
[1719044682686,18.612,134.33,134.25,7.4486]
[1719044683003,7.4462,134.3,134.25,7.4486]
[1719044684693,7.4466,134.29,134.23,15.6659]
[1719044684896,7.4466,134.29,134.24,7.449]
[1719044686380,7.4466,134.29,134.25,7.4487]
[1719044687607,18.6137,134.31,134.25,7.4487]
[1719044687608,7.4462,134.3,134.25,7.4487]
[1719044688804,18.6147,134.31,134.23,15.6659]
[1719044689108,7.4483,134.26,134.23,15.6659]
[1719044691204,7.449,134.25,134.23,15.6659]
[1719044691516,7.449,134.25,134.22,6.2461]
[1719044691905,7.4484,134.26,134.22,6.2461]
[1719044696527,7.4476,134.28,134.22,6.2461]
[1719044696828,7.4477,134.27,134.22,6.2461]
[1719044697031,7.4477,134.27,134.22,13.6961]
[1719044697227,7.4483,134.26,134.22,6.2461]
[1719044697424,7.4479,134.27,134.22,13.6965]
[1719044698514,7.4482,134.26,134.22,6.2461]
[1719044701310,21.55907547,134.3,134.22,6.2461]
[1719044701632,7.449,134.25,134.22,6.2461]
[1719044701835,7.4484,134.26,134.22,6.2461]
[1719044702048,7.4484,134.26,134.21,7.4509]
[1719044702049,7.4494,134.24,134.2,16.0062]
[1719044702336,7.449,134.25,134.2,23.4577]
[1719044702546,7.4494,134.24,134.2,16.0062]
[1719044704038,7.449,134.25,134.2,23.4577]
[1719044705744,7.4474,134.28,134.23,7.4494]
[1719044706644,7.4466,134.29,134.24,7.4491]
[1719044707545,7.4472,134.28,134.23,13.7305]
[1719044708039,7.448,134.27,134.23,6.2809]
[1719044708351,18.6176,134.29,134.23,6.2809]
[1719044709047,7.4483,134.26,134.23,6.2809]
[1719044709241,7.4477,134.27,134.23,6.2809]
[1719044709850,7.4482,134.26,134.23,6.2809]
[1719044710744,44.89,134.3,134.2,16.0062]
[1719044710943,18.6188,134.28,134.2,16.0062]
[1719044711247,7.449,134.25,134.2,23.4577]
[1719044714549,7.4493,134.24,134.2,16.0062]
[1719044714843,18.6209,134.26,134.2,16.0062]
[1719044715629,7.4501,134.23,134.2,16.0062]
[1719044718027,7.4494,134.24,134.2,16.0062]
[1719044718224,23.8134,134.28,134.2,16.0062]
[1719044718225,7.4488,134.25,134.2,16.0062]
[1719044718547,7.4488,134.25,134.2,23.4574]
[1719044719045,7.4484,134.26,134.21,7.4508]
[1719044719239,0.4206025,134.3,134.22,7.45]
[1719044719240,7.4479,134.27,134.22,7.45]
[1719044720765,7.448,134.27,134.21,7.4505]
[1719044720957,7.448,134.27,134.22,7.4502]
[1719044722345,7.4482,134.26,134.21,7.4508]
[1719044724348,7.4488,134.25,134.2,23.4575]
[1719044724541,7.4493,134.24,134.2,23.4575]
[1719044725451,7.449,134.25,134.2,23.4575]
[1719044726436,7.4494,134.24,134.2,16.0062]
[1719044727342,7.449,134.25,134.2,23.4577]
[1719044728326,18.6151,134.3,134.2,16.0062]
[1719044728533,7.4473,134.28,134.23,7.4495]
[1719044731153,7.4468,134.29,134.24,7.4489]
[1719044731358,7.4468,134.29,134.24,14.0089]
[1719044732064,7.4468,134.29,134.25,15.2301]
[1719044732642,7.446,134.3,134.25,22.6787]
[1719044733573,7.4456,134.31,134.25,22.6787]
[1719044734236,7.4456,134.31,134.26,7.4481]
[1719044735268,27.06356943,134.35,134.27,7.4473]
[1719044735480,18.6084,134.35,134.27,7.4473]
[1719044736173,0.5528868,134.37,134.3,21.7901]
[1719044736379,7.4427,134.36,134.3,29.2359]
[1719044736549,0.5528868,134.37,134.31,15.2301]
[1719044736756,0.5528868,134.37,134.33,7.4441]
[1719044740062,0.5528868,134.37,134.34,7.4437]
[1719044741776,0.5528868,134.37,134.32,0.17]
[1719044742556,0.5528868,134.37,134.33,7.4439]
[1719044743379,7.9952868,134.37,134.31,15.2301]
[1719044743675,7.9952868,134.37,134.32,7.4445]
[1719044744171,7.4427,134.36,134.31,22.6754]
[1719044744888,0.5528868,134.37,134.31,15.2301]
[1719044745583,7.9951868,134.37,134.32,7.4448]
[1719044745796,7.4427,134.36,134.31,22.6754]
[1719044746361,7.9950868,134.37,134.31,22.6754]
[1719044746865,7.9950868,134.37,134.32,7.4448]
[1719044748472,0.5528868,134.37,134.33,7.4443]
[1719044748674,0.5528868,134.37,134.32,7.4447]
[1719044748872,0.5528868,134.37,134.33,7.4443]
[1719044749174,7.9950868,134.37,134.32,7.4447]
[1719044749568,7.9950868,134.37,134.31,22.6753]
[1719044749772,0.5528868,134.37,134.32,7.4444]
[1719044749983,0.5528868,134.37,134.33,7.4442]
[1719044751980,0.5528868,134.37,134.32,7.4446]
[1719044752862,0.5528868,134.37,134.33,7.4443]
[1719044753375,7.9951868,134.37,134.32,7.4446]
[1719044754482,0.5528868,134.37,134.33,7.4443]
[1719044755489,0.5528868,134.37,134.31,15.2301]
[1719044755787,7.4428,134.36,134.31,22.6751]
[1719044756392,0.5528868,134.37,134.31,15.2301]
[1719044756572,7.4436,134.35,134.3,6.56]
[1719044756978,7.443,134.36,134.3,14.0058]
[1719044757376,7.4431,134.36,134.3,14.0055]
[1719044757579,7.4431,134.36,134.3,6.56]
[1719044757778,7.4431,134.36,134.31,7.4451]
[1719044758584,7.4431,134.36,134.3,14.0057]
[1719044758782,7.4432,134.35,134.3,14.0057]
[1719044758997,7.4429,134.36,134.3,14.0057]
[1719044759183,7.4434,134.35,134.3,14.0057]
[1719044759577,0.5528868,134.37,134.28,34.4058]
[1719044759578,7.4438,134.34,134.29,7.4462]
[1719044759785,7.4434,134.35,134.29,7.4462]
[1719044760200,7.4434,134.35,134.3,7.4459]
[1719044761896,7.4429,134.36,134.31,7.4454]
[1719044762081,7.9951868,134.37,134.32,7.4446]
[1719044762584,0.5528868,134.37,134.28,15.7881]
[1719044762897,7.9951868,134.37,134.32,7.4446]
[1719044764495,7.9951868,134.37,134.31,7.4452]
[1719044766581,7.9951868,134.37,134.32,7.4448]
[1719044770581,0.5528868,134.37,134.33,7.4443]
[1719044771002,0.5528868,134.37,134.34,7.4437]
[1719044771983,0.5528868,134.37,134.36,7.4426]
[1719044772187,0.5528868,134.37,134.35,7.4429]
[1719044772610,0.5528868,134.37,134.36,8.20707275]
[1719044772992,0.5528868,134.37,134.36,7.4426]
[1719044773409,0.5528868,134.37,134.36,8.20701585]
[1719044773996,0.5528868,134.37,134.36,7.4426]
[1719044774206,0.5528868,134.37,134.36,7.7826]
[1719044774711,7.438,134.45,134.39,7.4407]
[1719044774892,7.438,134.45,134.37,16.5131]
[1719044775210,16.1684,134.49,134.38,18.7738]
[1719044775393,7.4369,134.47,134.39,20.17]
[1719044775717,7.4371,134.46,134.4,0.17]
[1719044775884,7.4381,134.45,134.39,20.0]
[1719044776090,34.7575,134.49,134.38,20.34]
[1719044776289,7.4367,134.47,134.42,7.4393]
[1719044777899,7.4362,134.48,134.42,7.4393]
[1719044778090,7.4362,134.48,134.43,7.4387]
[1719044778285,0.8744636,134.5,134.45,7.4373]
[1719044778596,0.8744636,134.5,134.44,16.5131]
[1719044778796,7.4357,134.49,134.44,16.5131]
[1719044778995,7.4357,134.49,134.44,23.9513]
[1719044779192,8.3094636,134.5,134.44,16.5131]
[1719044779407,8.3094636,134.5,134.44,23.9508]
[1719044779800,7.4355,134.49,134.44,23.9508]
[1719044780612,7.4355,134.49,134.43,7.4385]
[1719044780981,7.436,134.48,134.43,7.4385]
[1719044781495,7.4366,134.47,134.42,7.4392]
[1719044782285,7.4372,134.46,134.4,7.4401]
[1719044782509,7.4372,134.46,134.41,7.4398]
[1719044783788,30.0,134.45,134.41,7.4398]
[1719044783983,30.0,134.45,134.42,7.4392]
[1719044784194,30.0,134.45,134.38,18.6025]
[1719044784509,37.4377,134.45,134.4,7.4401]
[1719044784901,7.4384,134.44,134.39,7.4407]
[1719044785293,7.4384,134.44,134.37,23.164]
[1719044785294,7.4389,134.43,134.38,7.4413]
[1719044787418,16.1684,134.44,134.34,35.1225]
[1719044787590,7.4405,134.4,134.35,7.4428]
[1719044788612,7.441,134.39,134.31,293.3725]
[1719044788807,7.441,134.39,134.31,34.4725]
[1719044789700,18.5996,134.42,134.31,34.4725]
[1719044790017,18.5996,134.42,134.34,7.4436]
[1719044790018,7.4413,134.39,134.34,7.4436]
[1719044790193,18.5996,134.42,134.31,34.4725]
[1719044790395,7.4413,134.39,134.33,7.4439]
[1719044790861,7.4405,134.4,134.35,7.4432]
[1719044791128,7.4405,134.4,134.34,7.4435]
[1719044792899,7.4412,134.39,134.34,7.4435]
[1719044794125,7.4407,134.4,134.34,7.4435]
[1719044794311,7.4407,134.4,134.31,34.4725]
[1719044794513,7.441,134.39,134.34,7.4435]
[1719044797597,7.4406,134.4,134.35,7.4432]
[1719044798804,7.4406,134.4,134.34,7.4435]
[1719044799821,7.4406,134.4,134.35,7.4431]
[1719044800029,7.44,134.41,134.36,7.4426]
[1719044801794,7.44,134.41,134.32,18.6109]
[1719044801795,7.44,134.41,134.35,7.4429]
[1719044801999,7.4407,134.4,134.35,7.4429]
[1719044804310,7.441,134.39,134.34,7.4435]
[1719044804531,7.4416,134.38,134.33,7.444]
[1719044805308,7.4412,134.39,134.34,7.4437]
[1719044811926,7.4417,134.38,134.33,7.4442]
[1719044812223,7.4424,134.37,134.32,7.4444]
[1719044814729,22.6023,134.39,134.31,15.8602]
[1719044814933,22.6023,134.39,134.34,7.4436]
[1719044815516,7.4416,134.38,134.33,7.4441]
[1719044816330,15.161,134.39,134.27,18.6179]
[1719044816513,7.4434,134.35,134.29,7.4461]
[1719044816917,7.4438,134.34,134.29,7.4461]
[1719044818632,7.4434,134.35,134.3,7.4459]
[1719044819136,18.6053,134.38,134.31,7.4449]
[1719044819324,7.4432,134.35,134.3,7.4457]
[1719044823936,7.4438,134.34,134.29,7.4463]
[1719044825145,18.6068,134.36,134.26,15.907]
[1719044825325,7.4449,134.32,134.27,7.4473]
[1719044825838,7.4445,134.33,134.28,7.447]
[1719044826439,24.8084,134.35,134.26,15.907]
[1719044826635,7.4459,134.31,134.26,23.355]
[1719044827855,7.4451,134.32,134.27,7.4476]
[1719044828742,7.4457,134.31,134.26,23.3552]
[1719044832539,7.445,134.32,134.27,7.4475]
[1719044832726,7.4448,134.33,134.28,7.447]
[1719044833327,7.445,134.32,134.27,7.4476]
[1719044836246,7.444,134.34,134.29,7.446]
[1719044837834,7.4443,134.33,134.28,7.4468]
[1719044839547,7.4439,134.34,134.29,7.4464]
[1719044842660,7.4436,134.35,134.3,23.4148]
[1719044845052,7.4438,134.34,134.3,15.9691]
[1719044845639,7.4443,134.33,134.3,15.9691]
[1719044846543,7.4439,134.34,134.3,15.9691]
[1719044848867,7.4443,134.33,134.3,15.9691]
[1719044849566,7.444,134.34,134.3,15.9691]
[1719044849951,7.445,134.32,134.27,23.604]
[1719044851860,7.445,134.32,134.28,7.447]
[1719044852372,7.4445,134.33,134.28,7.447]
[1719044854689,7.445,134.32,134.27,23.6043]
[1719044855386,33.6261,134.35,134.28,7.447]
[1719044855755,18.6048,134.38,134.27,16.1569]
[1719044855954,56.77955859,134.39,134.27,16.1569]
[1719044855955,7.4441,134.34,134.29,7.4464]
[1719044856277,7.4455,134.31,134.27,16.1569]
[1719044856471,82.2115,134.37,134.27,16.1569]
[1719044856777,7.4446,134.33,134.27,23.6041]
[1719044856984,7.4446,134.33,134.28,7.447]
[1719044857194,18.61,134.34,134.27,16.1569]
[1719044857482,7.4451,134.32,134.27,23.6045]
[1719044857677,18.61,134.34,134.27,23.6045]
[1719044857678,7.4454,134.31,134.27,16.1569]
[1719044858058,7.4451,134.32,134.27,16.1569]
[1719044858785,7.4445,134.33,134.27,23.6044]
[1719044858961,7.4449,134.32,134.27,23.6044]
[1719044859168,7.4445,134.33,134.27,23.6044]
[1719044860279,19.31392727,134.36,134.27,16.1569]
[1719044860484,7.4455,134.31,134.27,16.1569]
[1719044861177,7.4449,134.32,134.27,16.1569]
[1719044862866,7.4438,134.34,134.28,7.4467]
[1719044864275,18.6064,134.37,134.29,7.4461]
[1719044864462,7.4442,134.34,134.28,7.4468]
[1719044865775,7.4443,134.33,134.28,7.4468]
[1719044867484,7.444,134.34,134.29,7.4464]
[1719044868759,18.6079,134.36,134.27,23.6042]
[1719044868961,7.4449,134.32,134.27,23.6042]
[1719044869392,7.4445,134.33,134.27,23.6042]
[1719044869658,7.4445,134.33,134.28,7.447]
[1719044871073,18.6092,134.35,134.27,16.1569]
[1719044871377,7.4458,134.31,134.27,16.1569]
[1719044875503,7.4462,134.3,134.27,16.1569]
[1719044876065,7.4457,134.31,134.27,16.1569]
[1719044876567,7.4463,134.3,134.27,16.1569]
[1719044878472,7.4457,134.31,134.27,16.1569]
[1719044879372,7.446,134.3,134.27,16.1569]
[1719044885805,7.4466,134.29,134.27,16.1569]
[1719044886391,7.4462,134.3,134.27,16.1569]
[1719044891107,18.612,134.33,134.27,16.1569]
[1719044891284,20.01042472,134.36,134.27,16.1569]
[1719044891483,7.4449,134.32,134.27,23.6042]
[1719044891709,7.4445,134.33,134.28,7.447]
[1719044896804,6.54,134.29,134.28,7.447]
[1719044899614,20.01042472,134.36,134.27,16.1569]
[1719044899615,7.444,134.34,134.29,7.4465]
[1719044899910,6.54,134.3,134.29,7.4465]
[1719044901124,6.54,134.3,134.28,7.4468]
[1719044901415,6.54,134.29,134.28,7.4468]
[1719044902418,26.16,134.33,134.28,7.4468]
[1719044902586,6.54,134.29,134.28,7.4468]
[1719044909019,6.54,134.29,134.27,16.1569]
[1719044909212,6.54,134.28,134.27,16.1569]
[1719044909593,6.54,134.28,134.26,13.5748]
[1719044909797,6.54,134.27,134.24,15.2286]
[1719044910121,7.4455,134.31,134.26,7.4478]
[1719044910327,6.54,134.27,134.26,7.4478]
[1719044914292,26.16,134.33,134.29,7.4461]
[1719044914497,6.54,134.3,134.29,7.4461]
[1719044915593,26.16,134.33,134.29,7.4461]
[1719044915794,6.54,134.3,134.29,7.4461]
[1719044916721,6.54,134.3,134.28,7.4468]
[1719044916909,6.54,134.29,134.28,7.4468]
[1719044919201,7.4441,134.34,134.29,7.4462]
[1719044919406,6.54,134.3,134.29,7.4462]
[1719044922427,26.16,134.33,134.29,7.4462]
[1719044922728,6.54,134.3,134.29,7.4462]
[1719044931150,7.4435,134.35,134.29,7.4462]
[1719044931451,6.54,134.3,134.29,7.4462]
[1719044933826,26.16,134.33,134.29,7.4462]
[1719044934025,26.16,134.33,134.3,7.4458]
[1719044934264,6.54,134.31,134.3,7.4458]
[1719044936962,26.16,134.33,134.3,7.4458]
[1719044937135,6.54,134.31,134.3,7.4458]
[1719044937338,6.54,134.31,134.29,7.4463]
[1719044939240,6.54,134.3,134.29,7.4463]
[1719044941665,6.2966,134.39,134.35,7.443]
[1719044941854,6.2966,134.39,134.34,7.4436]
[1719044941855,13.7376,134.39,134.34,7.4436]
[1719044942030,6.54,134.35,134.33,7.4441]
[1719044942234,13.7376,134.39,134.33,7.4441]
[1719044942235,6.54,134.34,134.33,7.4441]
[1719044942656,7.4416,134.38,134.33,7.4441]
[1719044942965,6.54,134.34,134.33,7.4441]
[1719044945169,6.54,134.34,134.32,7.4447]
[1719044945736,6.54,134.33,134.32,7.4447]
[1719044948074,7.4416,134.38,134.33,7.4441]
[1719044948368,6.54,134.34,134.33,7.4441]
[1719044950146,6.2966,134.39,134.34,7.4433]
[1719044950341,6.54,134.35,134.34,7.4433]
[1719044950648,6.2966,134.39,134.34,7.4433]
[1719044950860,6.54,134.35,134.34,7.4433]
[1719044952339,6.54,134.35,134.33,7.4441]
[1719044952539,6.54,134.34,134.33,7.4441]
[1719044953549,13.7378,134.39,134.33,7.4441]
[1719044953750,6.54,134.34,134.33,7.4441]
[1719044954364,13.7378,134.39,134.33,7.4441]
[1719044954549,13.7378,134.39,134.34,7.4436]
[1719044954744,6.54,134.35,134.34,7.4436]
[1719044955248,6.54,134.35,134.29,43.7714]
[1719044955249,6.54,134.37,134.33,15.445]
[1719044955455,6.54,134.37,134.33,34.0548]
[1719044955658,6.54,134.36,134.35,7.4432]
[1719044956050,6.54,134.37,134.36,7.4426]
[1719044956250,26.16,134.4,134.36,7.4426]
[1719044956447,6.54,134.37,134.36,7.4426]
[1719044957978,6.54,134.37,134.35,7.443]
[1719044958275,6.54,134.36,134.33,15.445]
[1719044958450,6.54,134.35,134.34,7.4437]
[1719044960767,6.54,134.36,134.35,7.4432]
[1719044962187,26.16,134.4,134.36,7.4425]
[1719044962362,6.54,134.37,134.36,7.4425]
[1719044962764,6.54,134.37,134.35,7.4429]
[1719044962973,6.54,134.36,134.35,7.4429]
[1719044965589,6.54,134.36,134.31,7.445]
[1719044965764,6.54,134.36,134.3,7.4455]
[1719044965765,6.54,134.32,134.3,7.4455]
[1719044965962,7.443,134.36,134.27,34.0639]
[1719044965963,7.4423,134.37,134.31,7.4454]
[1719044966185,7.4423,134.37,134.32,7.4448]
[1719044966373,6.54,134.33,134.32,7.4448]
[1719044966762,6.54,134.33,134.31,7.4452]
[1719044969370,6.54,134.32,134.31,7.4452]
[1719044970492,6.54,134.32,134.3,7.4458]
[1719044971699,6.54,134.31,134.3,7.4458]
[1719044975181,7.4427,134.36,134.3,7.4458]
[1719044975380,6.54,134.31,134.3,7.4458]
[1719044976477,27.34355713,134.38,134.28,18.6167]
[1719044976787,6.54,134.32,134.28,18.6167]
[1719044977185,6.54,134.32,134.31,7.4454]
[1719044978704,7.4423,134.37,134.32,7.4445]
[1719044978892,6.54,134.33,134.32,7.4445]
[1719044982601,21.3532,134.38,134.3,18.6148]
[1719044982899,6.54,134.32,134.31,7.4454]
[1719044983104,28.7952,134.38,134.32,7.4446]
[1719044983280,6.54,134.33,134.32,7.4446]
[1719044984878,6.54,134.33,134.31,7.4454]
[1719044985194,6.54,134.32,134.31,7.4454]
[1719044985582,6.54,134.32,134.3,7.4457]
[1719044985780,6.54,134.32,134.31,7.4453]
[1719044987689,7.4425,134.37,134.31,7.4453]
[1719044987888,6.54,134.32,134.31,7.4453]
[1719044990977,6.54,134.32,134.27,15.615]
[1719044991606,6.54,134.32,134.3,7.4459]
[1719044991903,6.54,134.31,134.3,7.4459]
[1719044998404,21.3532,134.38,134.32,7.4444]
[1719044998594,28.795,134.38,134.33,7.4442]
[1719044998795,6.54,134.34,134.33,7.4442]
[1719044999790,6.54,134.34,134.29,18.6159]
[1719045001410,21.3532,134.38,134.27,34.0638]
[1719045001411,6.54,134.32,134.27,34.0638]
[1719045001904,6.54,134.31,134.3,7.4456]
[1719045002498,6.54,134.32,134.31,7.4453]
[1719045003221,6.54,134.32,134.3,7.4457]
[1719045003528,6.54,134.31,134.3,7.4457]
[1719045003694,6.54,134.31,134.29,7.4463]
[1719045004125,6.54,134.31,134.3,7.446]
[1719045006425,6.54,134.32,134.3,7.446]
[1719045007700,21.3532,134.38,134.29,18.6157]
[1719045007907,28.795,134.38,134.33,7.4442]
[1719045008112,6.54,134.34,134.33,7.4442]
[1719045008722,6.54,134.37,134.36,7.4422]
[1719045009614,6.54,134.37,134.35,7.4429]
[1719045009993,6.54,134.37,134.34,7.4435]
[1719045010197,7.4411,134.39,134.33,7.4441]
[1719045010410,7.4406,134.4,134.35,7.4429]
[1719045010597,6.54,134.36,134.34,7.4435]
[1719045010793,6.54,134.35,134.34,7.4435]
[1719045011216,7.4405,134.4,134.35,7.4431]
[1719045011502,33.6005,134.4,134.35,7.4431]
[1719045011697,6.54,134.37,134.35,7.4431]
[1719045012525,6.54,134.36,134.31,34.9213]
[1719045012826,6.54,134.34,134.33,7.4442]
[1719045013399,6.54,134.34,134.32,7.4447]
[1719045013622,7.4421,134.37,134.31,7.4452]
[1719045013623,6.54,134.33,134.31,7.4452]
[1719045013798,6.54,134.32,134.31,7.4452]
[1719045014298,6.54,134.32,134.3,7.4458]
[1719045014618,6.54,134.32,134.27,47.6145]
[1719045015122,6.54,134.32,134.27,41.0745]
[1719045015299,6.54,134.32,134.31,7.4454]
[1719045015721,6.54,134.33,134.31,7.4454]
[1719045016062,6.54,134.33,134.27,47.6145]
[1719045017600,6.54,134.33,134.31,7.445]
[1719045017934,6.54,134.33,134.3,7.4457]
[1719045018732,6.54,134.33,134.28,18.6166]
[1719045019324,6.54,134.33,134.31,7.4453]
[1719045019522,21.7222,134.37,134.28,18.6166]
[1719045019742,6.54,134.33,134.31,7.4451]
[1719045020231,6.54,134.33,134.3,7.4457]
[1719045020538,6.54,134.31,134.29,7.4463]
[1719045021031,7.4438,134.34,134.28,7.4468]
[1719045021215,6.54,134.31,134.29,7.4465]
[1719045022321,6.54,134.3,134.29,7.4465]
[1719045022710,7.4435,134.35,134.3,7.446]
[1719045022711,6.54,134.31,134.3,7.446]
[1719045023227,6.54,134.32,134.3,7.446]
[1719045023927,7.4435,134.35,134.3,7.446]
[1719045024129,6.54,134.32,134.3,7.446]
[1719045024303,7.4435,134.35,134.3,7.446]
[1719045024507,6.54,134.32,134.3,7.446]
[1719045025208,6.54,134.32,134.31,7.4454]
[1719045025912,6.54,134.35,134.33,7.4439]
[1719045029542,7.4417,134.38,134.33,7.4439]
[1719045029723,6.54,134.35,134.33,7.4439]
[1719045032424,6.54,134.35,134.32,7.4446]
[1719045032623,6.54,134.34,134.32,7.4446]
[1719045033550,21.7222,134.41,134.34,7.4437]
[1719045033719,21.7222,134.41,134.35,7.4431]
[1719045033720,6.54,134.36,134.35,7.4431]
[1719045035936,7.4406,134.4,134.35,7.4431]
[1719045036144,29.1623,134.41,134.36,7.4426]
[1719045036358,6.54,134.39,134.37,7.4419]
[1719045037157,7.4397,134.42,134.37,7.4419]
[1719045037337,6.54,134.39,134.37,7.4419]
[1719045038155,6.54,134.4,134.38,7.4415]
[1719045038363,6.54,134.4,134.37,7.4419]
[1719045038859,7.4394,134.42,134.37,7.4419]
[1719045039063,7.439,134.43,134.38,7.4415]
[1719045039235,6.54,134.4,134.38,7.4415]
[1719045039433,6.54,134.4,134.34,24.9551]
[1719045039434,6.54,134.4,134.37,7.4418]
[1719045040832,6.54,134.39,134.37,7.4418]
[1719045041041,6.54,134.39,134.36,7.4425]
[1719045042150,15.1929,134.44,134.32,16.1854]
[1719045042151,6.54,134.38,134.35,7.443]
[1719045042361,6.54,134.37,134.35,7.443]
[1719045042943,7.4411,134.39,134.34,7.4436]
[1719045043543,33.6006,134.4,134.35,7.4432]
[1719045045146,33.6006,134.4,134.32,34.7975]
[1719045045147,33.6006,134.4,134.34,7.4435]
[1719045045344,33.6006,134.4,134.35,7.4432]
[1719045046453,26.16,134.4,134.35,7.4432]
[1719045047751,33.6005,134.4,134.35,7.4432]
[1719045049762,6.54,134.36,134.35,7.4432]
[1719045050868,33.6005,134.4,134.35,7.4432]
[1719045051172,6.54,134.36,134.35,7.4432]
[1719045056468,6.54,134.36,134.34,7.4435]
[1719045056673,7.441,134.39,134.34,7.4435]
[1719045056869,6.54,134.35,134.32,34.7975]
[1719045057175,6.54,134.35,134.34,7.4437]
[1719045059960,6.54,134.36,134.34,7.4437]
[1719045060675,6.54,134.35,134.32,7.4446]
[1719045060885,41.3551,134.4,134.32,7.4446]
[1719045060886,6.54,134.33,134.32,7.4446]
[1719045066155,7.4422,134.37,134.32,7.4446]
[1719045066355,6.54,134.33,134.29,18.6158]